bitfinex-derivatives/quotes_BTCF0:USTF0_20251023
["timestamp","ask_amount","ask_price","bid_price","bid_amount"]
[1761189168091,0.48666041,108570.0,108560.0,0.23501904]
[1761189169586,0.49562629,108570.0,108560.0,0.23501904]
[1761189170788,0.48666041,108570.0,108560.0,0.23501904]
[1761189171379,0.48666041,108570.0,108560.0,0.2019751]
[1761189171675,0.48666041,108570.0,108560.0,0.23501904]
[1761189172283,0.48666041,108570.0,108560.0,0.2019751]
[1761189173990,0.48666041,108570.0,108560.0,0.31957551]
[1761189174389,0.0223,108570.0,108560.0,0.43717592]
[1761189174688,0.34614,108570.0,108560.0,0.37788578]
[1761189174889,0.36918,108570.0,108560.0,0.37788578]
[1761189175085,0.48678041,108570.0,108560.0,0.37788578]
[1761189175586,0.36918,108570.0,108560.0,0.37788578]
[1761189175883,0.36918,108570.0,108560.0,0.32788578]
[1761189177290,0.48678041,108570.0,108560.0,0.32788578]
[1761189178394,0.48678041,108570.0,108560.0,0.21028537]
[1761189178593,0.48678041,108570.0,108560.0,0.2349849]
[1761189178785,0.48678041,108570.0,108560.0,0.20194096]
[1761189180592,0.48678041,108570.0,108560.0,0.31954137]
[1761189181194,0.48678041,108570.0,108560.0,0.35258531]
[1761189182293,0.16294041,108570.0,108560.0,0.35258531]
[1761189182495,0.48682041,108570.0,108560.0,0.35258531]
[1761189183597,0.48682041,108570.0,108560.0,0.20194096]
[1761189185891,0.48682041,108570.0,108560.0,0.2349849]
[1761189186093,0.48682041,108570.0,108560.0,0.20194096]
[1761189186297,0.48682041,108570.0,108560.0,0.2349849]
[1761189186895,0.48682041,108570.0,108560.0,0.20194096]
[1761189187093,0.60442082,108570.0,108560.0,0.09584266]
[1761189187295,0.48682041,108570.0,108560.0,0.18794616]
[1761189188897,0.48682041,108570.0,108560.0,0.20134616]
[1761189196103,0.0223,108570.0,108560.0,0.46959092]
[1761189196300,0.48776041,108580.0,108570.0,0.1497851]
[1761189196491,0.48776041,108580.0,108570.0,0.19724454]
[1761189197405,0.60536082,108580.0,108570.0,0.19724454]
[1761189197702,0.60536082,108580.0,108570.0,0.20024454]
[1761189197904,0.60536082,108580.0,108570.0,0.17550234]
[1761189198304,0.60536082,108580.0,108570.0,0.17650234]
[1761189198605,0.04628,108580.0,108570.0,0.29410275]
[1761189198907,0.04628,108590.0,108580.0,0.1497766]
[1761189199100,0.54640397,108600.0,108590.0,0.1497681]
[1761189199599,0.54640397,108600.0,108590.0,0.17241574]
[1761189200000,0.53743015,108600.0,108590.0,0.17241574]
[1761189200305,0.48776041,108600.0,108590.0,0.17240666]
[1761189200807,0.48773596,108600.0,108590.0,0.17340666]
[1761189201703,0.48773596,108600.0,108590.0,0.17440666]
[1761189202714,0.48773596,108600.0,108590.0,0.17540666]
[1761189204213,0.48773596,108600.0,108590.0,0.17440666]
[1761189204419,0.48773596,108600.0,108590.0,0.17340666]
[1761189210717,0.48773596,108600.0,108590.0,0.1507681]
[1761189217331,0.48773596,108600.0,108590.0,0.1733331]
[1761189217932,0.48773596,108600.0,108590.0,0.1507681]
[1761189218231,0.48773596,108600.0,108590.0,0.173335]
[1761189219325,0.04628,108600.0,108590.0,0.173335]
[1761189219525,0.2110057,108620.0,108610.0,0.148651]
[1761189219826,0.6848057,108620.0,108610.0,0.148651]
[1761189220535,0.69393598,108620.0,108610.0,0.148651]
[1761189220732,0.64426624,108620.0,108610.0,0.148651]
[1761189221834,0.52669028,108620.0,108610.0,0.148651]
[1761189222035,0.64426624,108620.0,108610.0,0.148651]
[1761189222333,0.70439598,108620.0,108610.0,0.148651]
[1761189222931,0.69393598,108620.0,108610.0,0.148651]
[1761189223632,0.6848057,108620.0,108610.0,0.148651]
[1761189223833,0.63513596,108620.0,108610.0,0.148651]
[1761189224334,0.6848057,108620.0,108610.0,0.148651]
[1761189224833,0.63513596,108620.0,108610.0,0.148651]
[1761189225333,0.64422395,108620.0,108610.0,0.148651]
[1761189226330,0.63513596,108620.0,108610.0,0.148651]
[1761189227936,0.6952657,108620.0,108610.0,0.148651]
[1761189229436,0.70451542,108620.0,108610.0,0.148651]
[1761189230038,0.65484568,108620.0,108610.0,0.148651]
[1761189231141,0.65484568,108620.0,108610.0,0.17123962]
[1761189231643,0.65484568,108620.0,108610.0,0.17123895]
[1761189236045,0.65484568,108620.0,108610.0,0.15770895]
[1761189239043,0.53726972,108620.0,108610.0,0.15770895]
[1761189239242,0.65484568,108620.0,108610.0,0.15770895]
[1761189240448,0.64559596,108620.0,108610.0,0.15770895]
[1761189240946,0.65470319,108620.0,108610.0,0.15770895]
[1761189242645,0.88470319,108620.0,108610.0,0.15770895]
[1761189247355,0.93437293,108620.0,108610.0,0.15770895]
[1761189247850,0.93437293,108620.0,108610.0,0.135121]
[1761189248255,0.88470319,108620.0,108610.0,0.135121]
[1761189249351,0.95101152,108620.0,108610.0,0.135121]
[1761189249946,0.88470319,108620.0,108610.0,0.135121]
[1761189250451,0.95101152,108620.0,108610.0,0.135121]
[1761189251150,0.88470319,108620.0,108610.0,0.135121]
[1761189251537,0.95101152,108620.0,108610.0,0.135121]
[1761189252351,0.88470319,108620.0,108610.0,0.135121]
[1761189252954,0.88470319,108620.0,108610.0,0.148521]
[1761189252955,0.95101152,108620.0,108610.0,0.148521]
[1761189253358,0.88470319,108620.0,108610.0,0.148521]
[1761189254065,0.65559596,108620.0,108610.0,0.148521]
[1761189254354,0.64513596,108620.0,108610.0,0.148521]
[1761189254960,0.64513596,108620.0,108610.0,0.149521]
[1761189255949,0.65446467,108620.0,108610.0,0.149521]
[1761189256257,0.66492467,108620.0,108610.0,0.093061]
[1761189256751,0.66492467,108620.0,108610.0,0.115061]
[1761189257859,0.71464999,108620.0,108610.0,0.13771728]
[1761189258159,0.71464999,108620.0,108610.0,0.16102728]
[1761189262763,0.83220593,108620.0,108610.0,0.16102728]
[1761189265163,0.78248061,108620.0,108610.0,0.16102728]
[1761189265960,0.78248061,108620.0,108610.0,0.17452728]
[1761189266152,0.82174593,108620.0,108610.0,0.17452728]
[1761189266462,0.77202061,108620.0,108610.0,0.17452728]
[1761189266962,0.78248061,108620.0,108610.0,0.16102728]
[1761189268162,0.78248061,108620.0,108610.0,0.16002728]
[1761189268362,0.78248061,108620.0,108610.0,0.16102728]
[1761189269358,0.78248061,108620.0,108610.0,0.19921831]
[1761189269555,1.30004656,108620.0,108610.0,0.04834731]
[1761189269764,1.30004656,108620.0,108610.0,0.001]
[1761189270263,1.36635489,108620.0,108610.0,0.001]
[1761189270654,1.30004656,108620.0,108610.0,0.001]
[1761189270857,1.30004656,108620.0,108600.0,0.1354443]
[1761189271058,0.32841756,108610.0,108600.0,0.15805078]
[1761189272650,0.32841756,108610.0,108600.0,0.06598648]
[1761189272964,0.34841756,108610.0,108600.0,0.06598648]
[1761189273168,0.2987019,108610.0,108600.0,0.02260648]
[1761189273565,0.2987019,108610.0,108600.0,0.04424648]
[1761189274765,0.2987019,108610.0,108600.0,0.02260648]
[1761189275069,0.34841756,108610.0,108590.0,0.1488512]
[1761189275268,0.6023819,108600.0,108590.0,0.17144972]
[1761189276066,0.65209756,108600.0,108590.0,0.17144972]
[1761189276265,0.6023819,108600.0,108590.0,0.17144972]
[1761189276873,0.6128419,108600.0,108590.0,0.17144972]
[1761189277171,0.6128419,108600.0,108590.0,0.17244972]
[1761189277566,0.6128419,108600.0,108590.0,0.17144972]
[1761189277770,0.6128419,108600.0,108590.0,0.17244972]
[1761189277971,1.50040785,108600.0,108590.0,0.0235973]
[1761189278175,1.50040785,108600.0,108570.0,0.13028103]
[1761189278176,0.04357,108580.0,108570.0,0.08157103]
[1761189278372,0.6023819,108580.0,108570.0,0.148975]
[1761189279573,0.6023819,108580.0,108570.0,0.149975]
[1761189280163,0.6023819,108580.0,108570.0,0.151975]
[1761189280472,0.61137789,108580.0,108570.0,0.151975]
[1761189283976,0.62183789,108580.0,108570.0,0.138475]
[1761189284275,0.62183789,108580.0,108570.0,0.151975]
[1761189286163,0.61137789,108580.0,108570.0,0.151975]
[1761189289574,0.61137789,108580.0,108570.0,0.003]
[1761189289575,0.62183789,108580.0,108570.0,0.003]
[1761189289774,0.62183789,108580.0,108570.0,0.02464]
[1761189289976,0.62183789,108580.0,108570.0,0.04638]
[1761189291271,0.73940384,108580.0,108570.0,0.04638]
[1761189291977,0.61137789,108580.0,108570.0,0.1519749]
[1761189292675,0.61137789,108580.0,108570.0,0.17440252]
[1761189293077,0.61137789,108580.0,108570.0,0.08230762]
[1761189294574,0.62183789,108580.0,108570.0,0.04706762]
[1761189295377,0.62183789,108580.0,108570.0,0.06888762]
[1761189299777,0.74940384,108580.0,108570.0,0.02542762]
[1761189299970,0.74940384,108580.0,108570.0,0.003]
[1761189300769,0.74940384,108580.0,108570.0,0.04663]
[1761189300971,0.74940384,108580.0,108570.0,0.06897518]
[1761189301177,0.63183789,108580.0,108570.0,0.06897518]
[1761189301972,0.74940384,108580.0,108570.0,0.02534518]
[1761189303580,0.74940384,108580.0,108570.0,0.04715518]
[1761189304171,0.74940384,108580.0,108570.0,0.06897518]
[1761189304577,0.63183789,108580.0,108570.0,0.06897518]
[1761189304778,0.63183789,108580.0,108570.0,0.16107008]
[1761189305073,0.61137789,108580.0,108570.0,0.17433008]
[1761189306381,0.2787019,108580.0,108570.0,0.17433008]
[1761189306683,0.6024219,108580.0,108570.0,0.19902111]
[1761189308874,0.16113595,108580.0,108570.0,0.59902111]
[1761189309076,0.48485595,108580.0,108570.0,0.59902111]
[1761189309580,0.6024219,108580.0,108570.0,0.59902111]
[1761189311082,0.2787019,108580.0,108570.0,0.59902111]
[1761189311274,0.48485595,108580.0,108570.0,0.59902111]
[1761189311478,0.16113595,108580.0,108570.0,0.71658706]
[1761189311679,0.16169595,108590.0,108580.0,0.1489763]
[1761189311879,0.48541595,108590.0,108580.0,0.17132148]
[1761189312779,0.48541595,108590.0,108580.0,0.17232148]
[1761189313188,0.48541595,108590.0,108580.0,0.17332148]
[1761189324812,0.36785,108590.0,108580.0,0.17332148]
[1761189325109,0.48545269,108590.0,108580.0,0.17332148]
[1761189328514,0.36785,108590.0,108580.0,0.17332148]
[1761189328713,0.04413,108590.0,108580.0,0.57332148]
[1761189330916,0.04413,108590.0,108580.0,0.59801251]
[1761189331113,0.04413,108590.0,108580.0,0.19801251]
[1761189334403,0.16173269,108590.0,108580.0,0.19801251]
[1761189334906,0.04413,108590.0,108580.0,0.19801251]
[1761189335309,0.04413,108590.0,108580.0,0.20801251]
[1761189335603,0.04413,108590.0,108580.0,0.19801251]
[1761189336010,0.04413,108590.0,108580.0,0.20801251]
[1761189336210,0.48460269,108600.0,108590.0,0.1506179]
[1761189336411,0.48460269,108600.0,108590.0,0.17296308]
[1761189336911,0.367,108600.0,108590.0,0.18296308]
[1761189337115,0.02122,108610.0,108600.0,0.1506094]
[1761189337316,0.09303566,108620.0,108610.0,0.1506009]
[1761189337509,0.16092269,108620.0,108610.0,0.1506009]
[1761189337709,0.16092269,108620.0,108610.0,0.17298324]
[1761189338016,0.21063835,108620.0,108610.0,0.1506009]
[1761189338513,0.09303566,108620.0,108610.0,0.1516009]
[1761189338714,0.21063835,108620.0,108610.0,0.1516009]
[1761189339316,0.16092269,108620.0,108610.0,0.1516009]
[1761189339514,0.16092269,108620.0,108610.0,0.17396499]
[1761189342409,0.16092269,108620.0,108610.0,0.1516009]
[1761189342610,0.16092269,108620.0,108610.0,0.17395348]
[1761189344222,0.16092269,108620.0,108610.0,0.18334153]
[1761189344423,0.16092269,108620.0,108610.0,0.17395348]
[1761189353229,0.16092269,108620.0,108610.0,0.19864451]
[1761189353729,0.16092269,108620.0,108610.0,0.17395348]
[1761189356322,0.16092269,108620.0,108610.0,0.19864451]
[1761189361432,0.04332,108620.0,108610.0,0.19864451]
[1761189363728,0.16092269,108620.0,108610.0,0.19864451]
[1761189367232,0.16092269,108620.0,108610.0,0.17395348]
[1761189368431,0.16092269,108620.0,108610.0,0.19867911]
[1761189369524,0.16092269,108620.0,108610.0,0.17395348]
[1761189372229,0.21063835,108620.0,108610.0,0.16121348]
[1761189376529,0.61063835,108620.0,108610.0,0.06915258]
[1761189376732,0.63063835,108620.0,108610.0,0.02335258]
[1761189377044,0.23063835,108620.0,108610.0,0.001]
[1761189377842,0.24723102,108620.0,108610.0,0.001]
[1761189382944,0.24723102,108620.0,108610.0,0.02257]
[1761189383241,0.24723102,108620.0,108610.0,0.001]
[1761189383545,0.23043146,108620.0,108610.0,0.001]
[1761189384341,0.63043146,108620.0,108610.0,0.001]
[1761189384641,0.64706058,108620.0,108610.0,0.001]
[1761189385242,0.74466327,108620.0,108610.0,0.001]
[1761189385542,1.08706058,108620.0,108610.0,0.001]
[1761189385932,1.02075225,108620.0,108610.0,0.001]
[1761189386842,1.25595871,108620.0,108610.0,0.001]
[1761189387034,1.3381085,108620.0,108610.0,0.001]
[1761189387233,1.25595871,108620.0,108610.0,0.001]
[1761189387843,1.32216489,108620.0,108610.0,0.001]
[1761189388441,1.06216489,108620.0,108610.0,0.001]
[1761189390645,1.04559627,108620.0,108610.0,0.001]
[1761189390847,1.30559627,108620.0,108610.0,0.001]
[1761189395647,1.45849627,108620.0,108610.0,0.001]
[1761189395845,1.30559627,108620.0,108610.0,0.001]
[1761189397553,1.25595871,108620.0,108610.0,0.001]
[1761189398648,1.30559,108620.0,108610.0,0.001]
[1761189400846,1.30559,108620.0,108610.0,0.02335]
[1761189401552,1.04559,108620.0,108610.0,0.02335]
[1761189402742,1.15559,108620.0,108610.0,0.001]
[1761189402942,1.37559,108620.0,108610.0,0.001]
[1761189403148,0.69278085,108620.0,108610.0,0.04612]
[1761189403442,1.04559,108620.0,108610.0,0.04612]
[1761189404151,1.36911,108620.0,108610.0,0.04612]
[1761189404343,1.04559,108620.0,108610.0,0.04612]
[1761189404544,1.36911,108620.0,108610.0,0.04612]
[1761189404761,1.04559,108620.0,108610.0,0.04612]
[1761189405246,1.36911,108620.0,108610.0,0.04612]
[1761189412857,1.36911,108620.0,108610.0,0.04517]
[1761189413258,1.31947871,108620.0,108610.0,0.04517]
[1761189415164,0.99595871,108620.0,108610.0,0.04517]
[1761189415363,1.31947871,108620.0,108610.0,0.04517]
[1761189426859,0.91947871,108620.0,108610.0,0.04517]
[1761189427864,0.98568489,108620.0,108610.0,0.04517]
[1761189432670,0.98568489,108620.0,108610.0,0.05809]
[1761189432970,0.98568489,108620.0,108610.0,0.550151]
[1761189432971,0.24314956,108620.0,108610.0,0.550151]
[1761189433166,0.22046448,108620.0,108610.0,0.550151]
[1761189433367,0.66154753,108620.0,108610.0,0.550151]
[1761189433770,0.66154753,108620.0,108610.0,0.150151]
[1761189437972,0.61183566,108620.0,108610.0,0.17261376]
[1761189438369,0.28835566,108620.0,108610.0,0.57261376]
[1761189438576,0.05971187,108620.0,108610.0,0.66775405]
[1761189438772,0.34591187,108630.0,108620.0,0.1498625]
[1761189438971,0.73939187,108630.0,108620.0,0.1498625]
[1761189439172,0.68968,108630.0,108620.0,0.1498625]
[1761189439674,0.44358,108630.0,108620.0,0.1498625]
[1761189439868,0.56118305,108630.0,108620.0,0.1498625]
[1761189441069,0.56118305,108630.0,108620.0,0.17229934]
[1761189441276,0.56118305,108630.0,108620.0,0.1498625]
[1761189442281,0.56118305,108630.0,108620.0,0.1722876]
[1761189443073,0.6787861,108630.0,108620.0,0.1722876]
[1761189443273,0.6787861,108630.0,108620.0,0.1498625]
[1761189443478,0.6787861,108630.0,108620.0,0.17233596]
[1761189445971,1.40667915,108630.0,108620.0,0.02247346]
[1761189446171,0.04529,108610.0,108600.0,0.1490251]
[1761189446376,0.48633305,108610.0,108600.0,0.17150118]
[1761189446775,0.48630126,108610.0,108600.0,0.17150118]
[1761189447384,0.48630126,108610.0,108600.0,0.17250118]
[1761189449085,0.48630126,108610.0,108600.0,0.17350118]
[1761189456184,1.30433252,108610.0,108600.0,0.002]
[1761189456382,0.05558,108590.0,108580.0,0.06785954]
[1761189456582,0.49659126,108590.0,108580.0,0.1483563]
[1761189457187,0.49659126,108590.0,108580.0,0.05627]
[1761189457383,0.49659126,108590.0,108580.0,0.04313]
[1761189457582,0.49659126,108590.0,108580.0,0.02207]
[1761189457882,0.49659126,108590.0,108580.0,0.004]
[1761189458082,0.49659126,108590.0,108580.0,0.04713]
[1761189458693,0.49659126,108590.0,108580.0,0.02607]
[1761189459692,0.49659126,108590.0,108580.0,0.04713]
[1761189460478,0.50561239,108590.0,108580.0,0.04713]
[1761189466912,0.50561239,108590.0,108580.0,0.1523564]
[1761189466913,0.49532239,108590.0,108580.0,0.1523564]
[1761189468100,0.49532239,108590.0,108580.0,0.06027]
[1761189469705,0.49532239,108590.0,108580.0,0.04713]
[1761189471305,0.49532239,108590.0,108580.0,0.1392163]
[1761189471506,0.48630126,108590.0,108580.0,0.1523563]
[1761189471807,0.48634126,108590.0,108580.0,0.17480915]
[1761189472999,0.48634126,108590.0,108580.0,0.08272285]
[1761189473506,0.48634126,108590.0,108580.0,0.17480915]
[1761189473813,0.36877,108590.0,108580.0,0.57480915]
[1761189474008,0.48634126,108590.0,108580.0,0.57480915]
[1761189480608,0.16286126,108590.0,108580.0,0.57480915]
[1761189481007,0.04453,108600.0,108590.0,0.1482678]
[1761189481208,0.48558126,108600.0,108590.0,0.1482678]
[1761189482402,0.48558126,108600.0,108590.0,0.1502678]
[1761189482805,0.48558126,108600.0,108590.0,0.17276056]
[1761189483208,0.48558126,108600.0,108590.0,0.17376056]
[1761189487008,0.60315252,108600.0,108590.0,0.17376056]
[1761189487214,0.48558126,108600.0,108590.0,0.17376056]
[1761189488011,0.48558126,108600.0,108590.0,0.1984901]
[1761189495019,0.16210126,108610.0,108600.0,0.1482593]
[1761189495219,0.48558126,108610.0,108600.0,0.17075206]
[1761189496411,0.48558126,108610.0,108600.0,0.17175206]
[1761189496614,0.48558126,108610.0,108600.0,0.17275206]
[1761189497220,0.36801,108610.0,108600.0,0.17275206]
[1761189498219,0.04453,108610.0,108600.0,0.57275206]
[1761189499115,0.16210126,108610.0,108600.0,0.57275206]
[1761189504721,0.16210126,108610.0,108600.0,0.5974816]
[1761189506627,0.13914126,108610.0,108600.0,0.5974816]
[1761189507125,0.16152126,108610.0,108600.0,0.5974816]
[1761189507928,0.16152126,108610.0,108600.0,0.57275206]
[1761189508729,0.16150287,108610.0,108600.0,0.57275206]
[1761189509229,0.16150287,108610.0,108600.0,0.5974816]
[1761189509423,0.16150287,108610.0,108600.0,0.57275206]
[1761189511029,0.16150287,108610.0,108600.0,0.5974816]
[1761189517531,0.16150287,108610.0,108600.0,0.9208816]
[1761189518036,0.16150287,108610.0,108600.0,0.89615206]
[1761189521538,0.13912287,108610.0,108600.0,0.89615206]
[1761189522045,0.13912287,108610.0,108600.0,1.01370493]
[1761189523432,0.13912287,108610.0,108600.0,0.89615206]
[1761189524142,0.13912287,108610.0,108600.0,0.9208816]
[1761189526540,0.13912287,108610.0,108600.0,1.03843447]
[1761189527036,0.0048,108630.0,108620.0,0.1509524]
[1761189527037,0.07584187,108630.0,108620.0,0.1509524]
[1761189527236,0.21577474,108630.0,108620.0,0.17356426]
[1761189528030,0.16606287,108630.0,108620.0,0.17356426]
[1761189528230,0.16706287,108630.0,108620.0,0.1982938]
[1761189529345,0.16606287,108630.0,108620.0,0.1982938]
[1761189530945,0.16606287,108630.0,108620.0,0.31584667]
[1761189531638,0.16606287,108630.0,108620.0,0.1982938]
[1761189532036,0.0048,108630.0,108620.0,0.75675954]
[1761189532250,0.09342187,108650.0,108640.0,0.1509354]
[1761189532546,0.13342187,108650.0,108640.0,0.1509354]
[1761189533247,0.08371,108650.0,108640.0,0.1509354]
[1761189533437,0.20226287,108650.0,108640.0,0.1509354]
[1761189534035,0.20326287,108650.0,108640.0,0.1509354]
[1761189541253,0.73110574,108650.0,108640.0,0.1373055]
[1761189541746,0.72081574,108650.0,108640.0,0.1373055]
[1761189541955,0.72081574,108650.0,108640.0,0.1503255]
[1761189542254,0.73127574,108650.0,108630.0,0.1478193]
[1761189542454,0.60291574,108640.0,108630.0,0.1478193]
[1761189542955,0.36781,108640.0,108630.0,0.1478193]
[1761189543253,0.60291574,108640.0,108630.0,0.1478193]
[1761189543855,0.60391574,108640.0,108630.0,0.1478193]
[1761189544352,0.60391574,108640.0,108630.0,0.05578]
[1761189544554,0.60391574,108640.0,108630.0,0.06533676]
[1761189545049,1.00391574,108640.0,108630.0,0.06533676]
[1761189545455,1.00391574,108640.0,108630.0,0.15738066]
[1761189546244,1.00391574,108640.0,108630.0,0.17040066]
[1761189546850,0.60391574,108640.0,108630.0,0.17040066]
[1761189550559,0.36881,108640.0,108630.0,0.17040066]
[1761189550760,0.60391574,108640.0,108630.0,0.17040066]
[1761189553574,0.28035574,108640.0,108630.0,0.19504404]
[1761189553772,0.60391574,108640.0,108630.0,0.19504404]
[1761189566979,0.60291574,108640.0,108630.0,0.19504404]
[1761189568676,0.4852287,108640.0,108630.0,0.19504404]
[1761189570485,0.36773,108640.0,108630.0,0.19504404]
[1761189571078,0.4852287,108640.0,108630.0,0.19504404]
[1761189576288,0.36773,108640.0,108630.0,0.19504404]
[1761189576484,0.4852287,108640.0,108630.0,0.19504404]
[1761189582798,0.04425,108640.0,108630.0,0.71254274]
[1761189582990,0.04498,108650.0,108640.0,0.1481154]
[1761189583192,0.2917,108650.0,108640.0,0.17069216]
[1761189583693,0.05498,108650.0,108640.0,0.17069216]
[1761189584191,0.05598,108650.0,108640.0,0.17069216]
[1761189585293,0.04598,108650.0,108640.0,0.17069216]
[1761189586588,0.04598,108650.0,108640.0,0.28819086]
[1761189586786,0.04598,108650.0,108640.0,0.71283424]
[1761189586985,0.02277,108650.0,108640.0,0.71283424]
[1761189587297,0.04598,108650.0,108640.0,0.59533554]
[1761189587491,0.04598,108650.0,108640.0,0.71283424]
[1761189587685,0.42857057,108670.0,108640.0,0.74587818]
[1761189587686,0.30061187,108670.0,108640.0,0.74587818]
[1761189587891,0.77309057,108670.0,108660.0,0.1480985]
[1761189588895,0.52699057,108670.0,108660.0,0.1480985]
[1761189589096,0.40949187,108670.0,108660.0,0.1480985]
[1761189589295,0.52699057,108670.0,108660.0,0.1480985]
[1761189589484,0.53199057,108670.0,108660.0,0.1480985]
[1761189589999,0.52899057,108670.0,108660.0,0.1480985]
[1761189590201,0.53399057,108670.0,108660.0,0.1480985]
[1761189590497,0.4842787,108670.0,108660.0,0.1480985]
[1761189593204,0.36678,108670.0,108660.0,0.1480985]
[1761189593405,0.4842787,108670.0,108660.0,0.17064108]
[1761189594101,0.4842787,108670.0,108660.0,0.1480985]
[1761189594606,0.4842787,108670.0,108660.0,0.17063827]
[1761189595196,0.4842787,108670.0,108660.0,0.1480985]
[1761189595698,0.4842787,108670.0,108660.0,0.17063626]
[1761189596703,0.4842787,108670.0,108660.0,0.1480985]
[1761189597105,0.4842787,108670.0,108660.0,0.17063483]
[1761189598401,0.4945687,108670.0,108660.0,0.11455483]
[1761189598603,0.4945687,108670.0,108660.0,0.15815483]
[1761189600510,0.4842787,108670.0,108660.0,0.17124483]
[1761189601507,0.2842787,108670.0,108660.0,0.17124483]
[1761189601910,0.2842787,108670.0,108660.0,0.1487085]
[1761189602110,0.16678,108670.0,108660.0,0.1487085]
[1761189602412,0.2842787,108670.0,108660.0,0.1487085]
[1761189606200,0.2842787,108670.0,108660.0,0.17124223]
[1761189607515,0.2842787,108670.0,108660.0,0.1487085]
[1761189608015,0.33399057,108670.0,108660.0,0.1487085]
[1761189613113,0.33399057,108670.0,108660.0,0.17125913]
[1761189613822,0.21649187,108670.0,108660.0,0.17125913]
[1761189614022,0.33399057,108670.0,108660.0,0.17125913]
[1761189614623,0.21649187,108670.0,108660.0,0.17125913]
[1761189614818,0.33399057,108670.0,108660.0,0.17125913]
[1761189618119,0.2842787,108670.0,108660.0,0.17125913]
[1761189620023,0.2772787,108670.0,108660.0,0.17125913]
[1761189621028,0.2772787,108670.0,108660.0,0.17128274]
[1761189621725,0.32699057,108670.0,108660.0,0.17128274]
[1761189624324,0.2772787,108670.0,108660.0,0.17128274]
[1761189626119,0.2772787,108670.0,108660.0,0.15819274]
[1761189626320,0.2772787,108670.0,108660.0,0.17166274]
[1761189628825,0.2772373,108670.0,108660.0,0.17166274]
[1761189629227,0.2772373,108670.0,108660.0,0.196353]
[1761189630727,0.2772373,108670.0,108660.0,0.17166274]
[1761189633128,0.65018917,108670.0,108660.0,0.17166274]
[1761189636421,0.6004773,108670.0,108660.0,0.17166274]
[1761189640731,0.15978,108670.0,108660.0,0.3138103]
[1761189640919,0.1672373,108670.0,108660.0,0.17166274]
[1761189641121,0.0048,108670.0,108660.0,1.2087249]
[1761189641326,0.04971187,108690.0,108680.0,0.1497016]
[1761189641526,0.3474573,108690.0,108680.0,0.28973314]
[1761189641825,0.39716917,108690.0,108680.0,0.17227584]
[1761189642236,0.39716917,108690.0,108680.0,0.28973314]
[1761189642735,0.39816917,108690.0,108680.0,0.28973314]
[1761189643034,0.231,108690.0,108680.0,0.40719044]
[1761189643334,0.4406973,108700.0,108690.0,0.1496932]
[1761189643534,0.9306973,108700.0,108690.0,0.17208393]
[1761189643926,0.65716917,108700.0,108690.0,0.1496932]
[1761189644632,0.65916917,108700.0,108690.0,0.1496932]
[1761189644828,0.66416917,108700.0,108690.0,0.1496932]
[1761189647238,0.6144573,108700.0,108690.0,0.1496932]
[1761189648138,0.66416917,108700.0,108690.0,0.1496932]
[1761189648940,0.45416917,108700.0,108690.0,0.1496932]
[1761189649831,0.4044573,108700.0,108690.0,0.1496932]
[1761189650034,0.4044573,108700.0,108690.0,0.2671505]
[1761189650837,0.287,108700.0,108690.0,0.2671505]
[1761189651341,0.4044573,108700.0,108690.0,0.2671505]
[1761189657347,0.45416917,108700.0,108690.0,0.2671505]
[1761189657856,0.4044573,108700.0,108690.0,0.2671505]
[1761189658055,0.45416917,108700.0,108690.0,0.2671505]
[1761189658752,0.05348202,108710.0,108700.0,0.0919846]
[1761189658957,0.08214979,108730.0,108710.0,0.1490462]
[1761189658958,0.33342507,108720.0,108710.0,0.1490462]
[1761189659151,0.87342507,108720.0,108710.0,0.1490462]
[1761189659558,1.03030507,108720.0,108710.0,0.1490462]
[1761189660352,0.9807773,108720.0,108710.0,0.1490462]
[1761189660644,0.9837773,108720.0,108710.0,0.1490462]
[1761189661261,0.6604573,108720.0,108710.0,0.2665035]
[1761189661461,0.6574573,108720.0,108710.0,0.1500462]
[1761189661656,0.6574573,108720.0,108710.0,0.2675035]
[1761189661862,0.54,108720.0,108710.0,0.2675035]
[1761189662363,0.45017687,108730.0,108720.0,0.1490377]
[1761189662565,0.60939957,108730.0,108720.0,0.3839523]
[1761189662759,0.93283957,108730.0,108720.0,0.266495]
[1761189662959,0.60939957,108730.0,108720.0,0.266495]
[1761189663657,0.60939957,108730.0,108720.0,0.267495]
[1761189664862,0.60939957,108730.0,108720.0,0.3849523]
[1761189665062,0.23939957,108730.0,108720.0,0.3849523]
[1761189665661,0.23939957,108730.0,108720.0,0.267495]
[1761189666867,0.23,108730.0,108720.0,0.27680274]
[1761189667066,0.4456573,108750.0,108740.0,0.1490209]
[1761189667264,0.5948,108750.0,108740.0,0.3839355]
[1761189667468,0.5948,108750.0,108740.0,0.2664782]
[1761189668162,0.2648,108750.0,108740.0,0.7839355]
[1761189668467,0.0068,108750.0,108740.0,1.1074955]
[1761189668856,0.0068,108750.0,108740.0,1.3874955]
[1761189670861,0.1242573,108750.0,108740.0,0.1490209]
[1761189671062,0.1242573,108750.0,108740.0,0.4728209]
[1761189671358,0.0068,108750.0,108740.0,0.4728209]
[1761189671564,0.1242573,108750.0,108740.0,0.4728209]
[1761189672057,0.0068,108750.0,108740.0,0.5902782]
[1761189672463,0.1242573,108750.0,108740.0,0.4728209]
[1761189673267,0.0068,108750.0,108740.0,0.4728209]
[1761189673570,0.1242573,108750.0,108740.0,0.4728209]
[1761189673771,0.1242573,108750.0,108740.0,0.1490209]
[1761189674361,0.1222573,108750.0,108740.0,0.1490209]
[1761189675074,0.6397146,108750.0,108740.0,0.05707]
[1761189675375,0.5222573,108750.0,108740.0,0.05707]
[1761189675670,0.5222573,108750.0,108740.0,0.1490208]
[1761189677076,0.1222573,108750.0,108740.0,0.1490208]
[1761189677476,0.1222573,108750.0,108740.0,0.05707]
[1761189678170,0.9634346,108750.0,108740.0,0.05707]
[1761189678387,0.9634346,108750.0,108740.0,0.03568]
[1761189678774,0.9634346,108750.0,108740.0,0.05707]
[1761189679271,0.8459773,108750.0,108740.0,0.01266]
[1761189679471,0.8459773,108750.0,108740.0,0.03568]
[1761189679676,0.8459773,108750.0,108740.0,0.05707]
[1761189680079,0.9634346,108750.0,108740.0,0.05707]
[1761189681176,0.8459773,108750.0,108740.0,0.05707]
[1761189683276,0.72852,108750.0,108740.0,0.05707]
[1761189683480,0.8459773,108750.0,108740.0,0.05707]
[1761189687175,0.8459773,108750.0,108740.0,0.1490207]
[1761189688182,0.8459773,108750.0,108740.0,0.17173185]
[1761189688383,0.8459773,108750.0,108740.0,0.07978115]
[1761189690184,0.8459773,108750.0,108740.0,0.07978942]
[1761189690684,0.84580526,108750.0,108740.0,0.07978942]
[1761189693277,0.4048,108750.0,108740.0,0.07978942]
[1761189693477,0.52208526,108750.0,108740.0,0.07978942]
[1761189694888,0.58208526,108750.0,108740.0,0.07978942]